[Event "Titled Tuesday Blitz August 22 Early 2023"]
[White "Flis, Pawel"]
[Black "Buscar, Michael"]
[WhiteFideId "1112864"]
[BlackFideId "2603616"]
[WhiteElo "2131"]
[BlackElo "2357"]
[Result "0-1"]
[Round "6"]
[TimeControl "180+1"]
[Date "2023.08.22"]
[WhiteClock "0:00:13"]
[BlackClock "0:00:19"]
[Board "204"]

1. e4 {[%clk 0:03:00]}  c5 {[%clk 0:02:20]} 2. Nf3 {[%clk 0:03:00]}  Nc6 {[%clk 0:02:19]} 3. d4 {[%clk 0:02:59]}  cxd4 {[%clk 0:02:19]} 4. Nxd4 {[%clk 0:03:00]}  Nf6 {[%clk 0:02:20]} 5. Nc3 {[%clk 0:03:00]}  e5 {[%clk 0:02:20]} 6. Ndb5 {[%clk 0:03:01]}  h6 {[%clk 0:02:21]} 7. Bc4 {[%clk 0:02:49]}  d6 {[%clk 0:02:19]} 8. a4 {[%clk 0:02:46]}  Be6 {[%clk 0:02:17]} 9. Bxe6 {[%clk 0:02:34]}  fxe6 {[%clk 0:02:16]} 10. O-O {[%clk 0:02:34]}  Be7 {[%clk 0:02:05]} 11. f4 {[%clk 0:02:34]}  exf4 {[%clk 0:02:04]} 12. Bxf4 {[%clk 0:02:30]}  e5 {[%clk 0:02:01]} 13. Be3 {[%clk 0:02:27]}  O-O {[%clk 0:01:57]} 14. Nd5 {[%clk 0:02:11]}  Nxe4 {[%clk 0:01:48]} 15. Nbc7 {[%clk 0:02:04]}  Rc8 {[%clk 0:01:42]} 16. Ne6 {[%clk 0:01:16]}  Rxf1+ {[%clk 0:01:37]} 17. Qxf1 {[%clk 0:01:15]}  Qd7 {[%clk 0:01:36]} 18. Qf5 {[%clk 0:01:05]}  Ng5 {[%clk 0:01:10]} 19. Qg6 {[%clk 0:00:49]}  Qxe6 {[%clk 0:01:00]} 20. Nxe7+ {[%clk 0:00:33]}  Nxe7 {[%clk 0:00:57]} 21. Qxe6+ {[%clk 0:00:32]}  Nxe6 {[%clk 0:00:56]} 22. c3 {[%clk 0:00:30]}  a6 {[%clk 0:00:53]} 23. Rd1 {[%clk 0:00:29]}  d5 {[%clk 0:00:52]} 24. g3 {[%clk 0:00:27]}  Rc4 {[%clk 0:00:51]} 25. a5 {[%clk 0:00:24]}  Re4 {[%clk 0:00:51]} 26. Kf2 {[%clk 0:00:22]}  d4 {[%clk 0:00:44]} 27. cxd4 {[%clk 0:00:22]}  exd4 {[%clk 0:00:44]} 28. Bc1 {[%clk 0:00:22]}  Nd5 {[%clk 0:00:40]} 29. Kf3 {[%clk 0:00:22]}  Re5 {[%clk 0:00:36]} 30. Bd2 {[%clk 0:00:21]}  Kf7 {[%clk 0:00:21]} 31. Rc1 {[%clk 0:00:21]}  Ke7 {[%clk 0:00:20]} 32. Rc8 {[%clk 0:00:21]}  Kd7 {[%clk 0:00:18]} 33. Rb8 {[%clk 0:00:19]}  Kc7 {[%clk 0:00:19]} 34. Rg8 {[%clk 0:00:19]}  Ne7 {[%clk 0:00:18]} 35. Re8 {[%clk 0:00:17]}  Nc6 {[%clk 0:00:18]} 36. b4 {[%clk 0:00:15]}  Ng5+ {[%clk 0:00:18]} 37. Kg4 {[%clk 0:00:13]}  Rxe8 {[%clk 0:00:19]} 38. h4 {[%clk 0:00:12]}  Ne4 {[%clk 0:00:18]} 39. Bf4+ {[%clk 0:00:12]}  Kd7 {[%clk 0:00:18]} 40. Kf5 {[%clk 0:00:13]}  d3 {[%clk 0:00:18]} 41. Kg6 {[%clk 0:00:13]}  d2 {[%clk 0:00:18]} 42. Bxd2 {[%clk 0:00:12]}  Nxd2 {[%clk 0:00:18]} 43. g4 {[%clk 0:00:13]}  Re7 {[%clk 0:00:17]} 44. g5 {[%clk 0:00:13]}  hxg5 {[%clk 0:00:17]} 45. hxg5 {[%clk 0:00:13]}  Nxb4 {[%clk 0:00:18]} 46. Kh7 {[%clk 0:00:13]}  Nc6 {[%clk 0:00:17]} 47. g6 {[%clk 0:00:13]}  Nxa5 {[%clk 0:00:17]} 48. Kg8 {[%clk 0:00:14]}  Nc6 {[%clk 0:00:18]} 49. Kh7 {[%clk 0:00:14]}  Ne5 {[%clk 0:00:18]} 50. Kh8 {[%clk 0:00:15]}  Ne4 {[%clk 0:00:19]} 51. Kh7 {[%clk 0:00:14]}  Nf6+ {[%clk 0:00:19]} 52. Kh8 {[%clk 0:00:13]}  Nxg6# {[%clk 0:00:19]} 0-1


[Site "https://www.chess.com"]

[Event "Titled Tuesday Blitz August 22 Early 2023"]
[White "Kula, Robert"]
[Black "Senft, Sean"]
[WhiteFideId "1101218"]
[BlackFideId "2044960"]
[WhiteElo "2122"]
[BlackElo "2344"]
[Result "1/2-1/2"]
[Round "6"]
[TimeControl "180+1"]
[Date "2023.08.22"]
[WhiteClock "0:00:09"]
[BlackClock "0:01:19"]
[Board "205"]

1. e4 {[%clk 0:03:00]}  c5 {[%clk 0:02:59]} 2. Nf3 {[%clk 0:02:49]}  d6 {[%clk 0:02:59]} 3. Nc3 {[%clk 0:02:48]}  Nf6 {[%clk 0:03:00]} 4. Bc4 {[%clk 0:02:45]}  e6 {[%clk 0:03:00]} 5. O-O {[%clk 0:02:45]}  Be7 {[%clk 0:03:01]} 6. d4 {[%clk 0:02:41]}  O-O {[%clk 0:03:02]} 7. dxc5 {[%clk 0:02:38]}  dxc5 {[%clk 0:03:03]} 8. Be3 {[%clk 0:02:37]}  Nc6 {[%clk 0:03:02]} 9. a3 {[%clk 0:02:33]}  a6 {[%clk 0:03:03]} 10. e5 {[%clk 0:02:27]}  Ng4 {[%clk 0:03:03]} 11. Bf4 {[%clk 0:02:28]}  b5 {[%clk 0:03:02]} 12. Ba2 {[%clk 0:02:27]}  Bb7 {[%clk 0:03:03]} 13. h3 {[%clk 0:02:26]}  Nh6 {[%clk 0:03:03]} 14. Bxh6 {[%clk 0:02:26]}  gxh6 {[%clk 0:03:04]} 15. Qe2 {[%clk 0:02:24]}  Kh8 {[%clk 0:03:00]} 16. Ne4 {[%clk 0:02:23]}  Rg8 {[%clk 0:02:58]} 17. c3 {[%clk 0:02:22]}  Qc7 {[%clk 0:02:56]} 18. Ng3 {[%clk 0:02:17]}  Rg7 {[%clk 0:02:52]} 19. Rae1 {[%clk 0:02:16]}  Rag8 {[%clk 0:02:52]} 20. Bb1 {[%clk 0:02:16]}  Qb8 {[%clk 0:02:50]} 21. Qe3 {[%clk 0:02:05]}  Qa8 {[%clk 0:02:50]} 22. Qxh6 {[%clk 0:02:04]}  Na5 {[%clk 0:02:29]} 23. Re4 {[%clk 0:01:03]}  Bxe4 {[%clk 0:02:18]} 24. Bxe4 {[%clk 0:01:02]}  Qd8 {[%clk 0:02:15]} 25. Kh1 {[%clk 0:00:56]}  Bg5 {[%clk 0:02:10]} 26. Qh5 {[%clk 0:00:54]}  Nc4 {[%clk 0:02:07]} 27. a4 {[%clk 0:00:28]}  bxa4 {[%clk 0:02:03]} 28. Ra1 {[%clk 0:00:24]}  Nxb2 {[%clk 0:02:02]} 29. Ra2 {[%clk 0:00:22]}  Nd3 {[%clk 0:01:52]} 30. Nxg5 {[%clk 0:00:19]}  Nxf2+ {[%clk 0:01:29]} 31. Rxf2 {[%clk 0:00:19]}  Qxg5 {[%clk 0:01:30]} 32. Qxg5 {[%clk 0:00:18]}  Rxg5 {[%clk 0:01:31]} 33. Rxf7 {[%clk 0:00:14]}  Rf8 {[%clk 0:01:14]} 34. Rxf8+ {[%clk 0:00:12]}  Kg7 {[%clk 0:01:12]} 35. Rf3 {[%clk 0:00:04]}  a3 {[%clk 0:01:12]} 36. c4 {[%clk 0:00:04]}  a2 {[%clk 0:01:11]} 37. Ra3 {[%clk 0:00:04]}  Rxg3 {[%clk 0:01:11]} 38. Rxa2 {[%clk 0:00:05]}  Re3 {[%clk 0:01:12]} 39. Bf3 {[%clk 0:00:05]}  Rxe5 {[%clk 0:01:13]} 40. Rxa6 {[%clk 0:00:05]}  Kf6 {[%clk 0:01:13]} 41. Bg4 {[%clk 0:00:04]}  h5 {[%clk 0:01:13]} 42. Bf3 {[%clk 0:00:04]}  h4 {[%clk 0:01:13]} 43. Kh2 {[%clk 0:00:04]}  Re3 {[%clk 0:01:13]} 44. Bd5 {[%clk 0:00:04]}  Kf5 {[%clk 0:01:13]} 45. Bxe6+ {[%clk 0:00:04]}  Rxe6 {[%clk 0:01:13]} 46. Rxe6 {[%clk 0:00:04]}  Kxe6 {[%clk 0:01:14]} 47. g4 {[%clk 0:00:05]}  Ke5 {[%clk 0:01:13]} 48. Kg2 {[%clk 0:00:05]}  Kd4 {[%clk 0:01:14]} 49. Kf3 {[%clk 0:00:05]}  Kxc4 {[%clk 0:01:14]} 50. g5 {[%clk 0:00:06]}  Kd5 {[%clk 0:01:15]} 51. Kf4 {[%clk 0:00:06]}  Ke6 {[%clk 0:01:15]} 52. Ke4 {[%clk 0:00:06]}  Kf7 {[%clk 0:01:13]} 53. Kd5 {[%clk 0:00:06]}  Kg6 {[%clk 0:01:14]} 54. Kxc5 {[%clk 0:00:06]}  Kxg5 {[%clk 0:01:15]} 55. Kd4 {[%clk 0:00:07]}  Kf4 {[%clk 0:01:16]} 56. Kd3 {[%clk 0:00:07]}  Kf3 {[%clk 0:01:17]} 57. Kd2 {[%clk 0:00:07]}  Kf2 {[%clk 0:01:17]} 58. Kd3 {[%clk 0:00:07]}  Kf3 {[%clk 0:01:16]} 59. Kd2 {[%clk 0:00:07]}  Kg2 {[%clk 0:01:16]} 60. Ke2 {[%clk 0:00:07]}  Kxh3 {[%clk 0:01:16]} 61. Kf3 {[%clk 0:00:08]}  Kh2 {[%clk 0:01:17]} 62. Kf2 {[%clk 0:00:08]}  h3 {[%clk 0:01:17]} 63. Kf1 {[%clk 0:00:08]}  Kh1 {[%clk 0:01:18]} 64. Kf2 {[%clk 0:00:08]}  Kh2 {[%clk 0:01:18]} 65. Kf1 {[%clk 0:00:08]}  Kh1 {[%clk 0:01:19]} 66. Kf2 {[%clk 0:00:09]}  h2 {[%clk 0:01:19]} 67. Kf1 {[%clk 0:00:09]} 1/2-1/2


[Site "https://www.chess.com"]

[Event "Titled Tuesday Blitz August 22 Early 2023"]
[White "Seifert, Henryk"]
[Black "Vaglio Munoz, Jaime"]
[WhiteFideId "1100963"]
[BlackFideId "6500145"]
[WhiteElo "2118"]
[BlackElo "2336"]
[Result "1-0"]
[Round "6"]
[TimeControl "180+1"]
[Date "2023.08.22"]
[WhiteClock "0:00:04"]
[BlackClock "0:00:43"]
[Board "206"]

1. e4 {[%clk 0:03:00]}  c5 {[%clk 0:03:00]} 2. Nf3 {[%clk 0:02:58]}  Qa5 {[%clk 0:03:00]} 3. g3 {[%clk 0:02:39]}  Nf6 {[%clk 0:02:56]} 4. e5 {[%clk 0:02:38]}  Nd5 {[%clk 0:02:56]} 5. Bg2 {[%clk 0:02:37]}  Nc6 {[%clk 0:02:56]} 6. O-O {[%clk 0:02:37]}  e6 {[%clk 0:02:56]} 7. Nc3 {[%clk 0:02:33]}  Nxc3 {[%clk 0:02:50]} 8. dxc3 {[%clk 0:02:34]}  h6 {[%clk 0:02:50]} 9. h4 {[%clk 0:02:23]}  Be7 {[%clk 0:02:49]} 10. h5 {[%clk 0:02:20]}  Qc7 {[%clk 0:02:42]} 11. Re1 {[%clk 0:02:18]}  b6 {[%clk 0:02:42]} 12. Bf4 {[%clk 0:02:12]}  Bb7 {[%clk 0:02:41]} 13. Qe2 {[%clk 0:02:06]}  g5 {[%clk 0:02:30]} 14. hxg6 {[%clk 0:02:02]}  fxg6 {[%clk 0:02:31]} 15. Qd3 {[%clk 0:01:45]}  Rg8 {[%clk 0:02:25]} 16. Bxh6 {[%clk 0:01:43]}  O-O-O {[%clk 0:02:23]} 17. Qe3 {[%clk 0:01:23]}  Na5 {[%clk 0:02:12]} 18. b3 {[%clk 0:01:19]}  g5 {[%clk 0:01:34]} 19. Nxg5 {[%clk 0:00:37]}  Bxg2 {[%clk 0:01:27]} 20. Kxg2 {[%clk 0:00:37]}  Qc6+ {[%clk 0:01:27]} 21. f3 {[%clk 0:00:30]}  Bxg5 {[%clk 0:01:23]} 22. Bxg5 {[%clk 0:00:30]}  Rdf8 {[%clk 0:01:23]} 23. Bf6 {[%clk 0:00:22]}  d5 {[%clk 0:01:21]} 24. Rh1 {[%clk 0:00:18]}  Rf7 {[%clk 0:01:19]} 25. Rh6 {[%clk 0:00:16]}  d4 {[%clk 0:01:13]} 26. Qe4 {[%clk 0:00:14]}  Qxe4 {[%clk 0:01:12]} 27. fxe4 {[%clk 0:00:15]}  dxc3 {[%clk 0:01:11]} 28. Rah1 {[%clk 0:00:12]}  Nc6 {[%clk 0:01:11]} 29. Rh7 {[%clk 0:00:08]}  Rgf8 {[%clk 0:01:10]} 30. g4 {[%clk 0:00:07]}  Nd4 {[%clk 0:01:01]} 31. g5 {[%clk 0:00:05]}  Nxc2 {[%clk 0:01:01]} 32. g6 {[%clk 0:00:06]}  Ne3+ {[%clk 0:00:48]} 33. Kf3 {[%clk 0:00:04]}  Rxf6+ {[%clk 0:00:42]} 34. exf6 {[%clk 0:00:04]}  Rxf6+ {[%clk 0:00:42]} 35. Kxe3 {[%clk 0:00:04]}  Rxg6 {[%clk 0:00:42]} 36. Rxa7 {[%clk 0:00:03]}  Kb8 {[%clk 0:00:42]} 37. Rhh7 {[%clk 0:00:02]}  c2 {[%clk 0:00:41]} 38. Rab7+ {[%clk 0:00:02]}  Kc8 {[%clk 0:00:41]} 39. Kd2 {[%clk 0:00:03]}  Rg2+ {[%clk 0:00:40]} 40. Kc1 {[%clk 0:00:03]}  c4 {[%clk 0:00:39]} 41. Rbg7 {[%clk 0:00:03]}  Rxg7 {[%clk 0:00:35]} 42. Rxg7 {[%clk 0:00:03]}  cxb3 {[%clk 0:00:36]} 43. axb3 {[%clk 0:00:03]}  b5 {[%clk 0:00:37]} 44. Kxc2 {[%clk 0:00:03]}  b4 {[%clk 0:00:38]} 45. Kd3 {[%clk 0:00:03]}  Kd8 {[%clk 0:00:39]} 46. Kc4 {[%clk 0:00:04]}  Ke8 {[%clk 0:00:40]} 47. Kxb4 {[%clk 0:00:04]}  Kf8 {[%clk 0:00:40]} 48. Ra7 {[%clk 0:00:04]}  Ke8 {[%clk 0:00:41]} 49. Kc5 {[%clk 0:00:04]}  Kd8 {[%clk 0:00:42]} 50. Kc6 {[%clk 0:00:04]}  Kc8 {[%clk 0:00:43]} 51. Ra8# {[%clk 0:00:04]} 1-0


[Site "https://www.chess.com"]

[Event "Titled Tuesday Blitz August 22 Early 2023"]
[White "Hartikainen, Jarmo"]
[Black "Bifulco, Michel"]
[WhiteFideId "503134"]
[BlackFideId "828580"]
[WhiteElo "2105"]
[BlackElo "2330"]
[Result "0-1"]
[Round "6"]
[TimeControl "180+1"]
[Date "2023.08.22"]
[WhiteClock "0:00:05"]
[BlackClock "0:00:53"]
[Board "208"]

1. e4 {[%clk 0:03:00]}  e5 {[%clk 0:02:59]} 2. Nf3 {[%clk 0:03:00]}  Nc6 {[%clk 0:02:59]} 3. Bc4 {[%clk 0:03:00]}  Nf6 {[%clk 0:02:59]} 4. Ng5 {[%clk 0:02:59]}  d5 {[%clk 0:02:59]} 5. exd5 {[%clk 0:03:00]}  Na5 {[%clk 0:02:59]} 6. Bb5+ {[%clk 0:03:00]}  c6 {[%clk 0:03:00]} 7. dxc6 {[%clk 0:03:00]}  bxc6 {[%clk 0:03:01]} 8. Be2 {[%clk 0:02:59]}  h6 {[%clk 0:02:58]} 9. Nf3 {[%clk 0:02:59]}  e4 {[%clk 0:02:58]} 10. Ne5 {[%clk 0:03:00]}  Bd6 {[%clk 0:02:56]} 11. d4 {[%clk 0:03:00]}  exd3 {[%clk 0:02:51]} 12. Nxd3 {[%clk 0:02:59]}  O-O {[%clk 0:02:48]} 13. O-O {[%clk 0:02:38]}  Bf5 {[%clk 0:02:44]} 14. Nc3 {[%clk 0:02:22]}  Qc7 {[%clk 0:02:38]} 15. h3 {[%clk 0:02:20]}  Rad8 {[%clk 0:02:39]} 16. b3 {[%clk 0:01:49]}  Rfe8 {[%clk 0:02:24]} 17. Bb2 {[%clk 0:01:46]}  Nb7 {[%clk 0:02:14]} 18. Bf3 {[%clk 0:01:21]}  Nc5 {[%clk 0:02:11]} 19. Kh1 {[%clk 0:00:38]}  Nxd3 {[%clk 0:01:49]} 20. cxd3 {[%clk 0:00:37]}  Bf4 {[%clk 0:01:35]} 21. Be2 {[%clk 0:00:20]}  Rxe2 {[%clk 0:01:24]} 22. Nxe2 {[%clk 0:00:17]}  Rxd3 {[%clk 0:01:23]} 23. Qc2 {[%clk 0:00:16]}  Rxh3+ {[%clk 0:01:22]} 24. gxh3 {[%clk 0:00:14]}  Bxc2 {[%clk 0:01:22]} 25. Bxf6 {[%clk 0:00:13]}  gxf6 {[%clk 0:01:19]} 26. Nd4 {[%clk 0:00:13]}  Be4+ {[%clk 0:01:02]} 27. f3 {[%clk 0:00:13]}  Bd5 {[%clk 0:01:03]} 28. Rae1 {[%clk 0:00:11]}  Be5 {[%clk 0:01:01]} 29. Ne2 {[%clk 0:00:10]}  Qc8 {[%clk 0:00:58]} 30. Kg2 {[%clk 0:00:10]}  Qf5 {[%clk 0:00:56]} 31. Rg1 {[%clk 0:00:05]}  Qxf3# {[%clk 0:00:53]} 0-1


[Site "https://www.chess.com"]

[Event "Titled Tuesday Blitz August 22 Early 2023"]
[White "Zepeda Berlanga, Jan Enrique"]
[Black "Pace, Christopher"]
[WhiteFideId "5132355"]
[BlackFideId "2610167"]
[WhiteElo "1996"]
[BlackElo "2327"]
[Result "0-1"]
[Round "6"]
[TimeControl "180+1"]
[Date "2023.08.22"]
[WhiteClock "0:00:00"]
[BlackClock "0:01:02"]
[Board "209"]

1. c4 {[%clk 0:03:00]}  e5 {[%clk 0:02:49]} 2. Nc3 {[%clk 0:02:59]}  Nf6 {[%clk 0:02:47]} 3. Nf3 {[%clk 0:03:00]}  Nc6 {[%clk 0:02:46]} 4. g3 {[%clk 0:03:00]}  d5 {[%clk 0:02:46]} 5. cxd5 {[%clk 0:02:59]}  Nxd5 {[%clk 0:02:47]} 6. Bg2 {[%clk 0:02:59]}  Nxc3 {[%clk 0:02:47]} 7. bxc3 {[%clk 0:02:57]}  Bd6 {[%clk 0:02:47]} 8. d4 {[%clk 0:02:49]}  exd4 {[%clk 0:02:47]} 9. Nxd4 {[%clk 0:02:46]}  Nxd4 {[%clk 0:02:46]} 10. Qxd4 {[%clk 0:02:43]}  O-O {[%clk 0:02:47]} 11. O-O {[%clk 0:02:43]}  Re8 {[%clk 0:02:44]} 12. Be3 {[%clk 0:02:08]}  Qe7 {[%clk 0:02:16]} 13. Rab1 {[%clk 0:02:00]}  c6 {[%clk 0:02:14]} 14. Rfd1 {[%clk 0:01:55]}  Be5 {[%clk 0:02:11]} 15. Qb4 {[%clk 0:01:48]}  Bf5 {[%clk 0:01:56]} 16. Bc5 {[%clk 0:01:35]}  Qf6 {[%clk 0:01:50]} 17. e4 {[%clk 0:01:32]}  Bg4 {[%clk 0:01:48]} 18. Rd3 {[%clk 0:01:23]}  b6 {[%clk 0:01:42]} 19. Be3 {[%clk 0:01:06]}  c5 {[%clk 0:01:38]} 20. Qb3 {[%clk 0:00:49]}  c4 {[%clk 0:01:33]} 21. Qxc4 {[%clk 0:00:44]}  Be2 {[%clk 0:01:34]} 22. f4 {[%clk 0:00:35]}  Rac8 {[%clk 0:01:07]} 23. Qd5 {[%clk 0:00:08]}  Bxd3 {[%clk 0:01:02]} 24. fxe5 {[%clk 0:00:00]}  Qd8 {[%clk 0:01:02]} 0-1


[Site "https://www.chess.com"]

[Event "Titled Tuesday Blitz August 22 Early 2023"]
[White "elcala"]
[Black "micke12a"]
[WhiteElo "1701"]
[BlackElo "2320"]
[Result "0-1"]
[Round "6"]
[TimeControl "180+1"]
[Date "2023.08.22"]
[WhiteClock "0:00:50"]
[BlackClock "0:02:06"]
[Board "211"]

1. d4 {[%clk 0:02:10]}  d5 {[%clk 0:02:58]} 2. Nf3 {[%clk 0:02:11]}  Nf6 {[%clk 0:02:58]} 3. Bf4 {[%clk 0:02:12]}  Bf5 {[%clk 0:02:57]} 4. e3 {[%clk 0:02:13]}  e6 {[%clk 0:02:57]} 5. Bd3 {[%clk 0:02:14]}  Ne4 {[%clk 0:02:57]} 6. O-O {[%clk 0:02:14]}  Bd6 {[%clk 0:02:57]} 7. c3 {[%clk 0:02:15]}  Bxf4 {[%clk 0:02:56]} 8. exf4 {[%clk 0:02:16]}  Qd6 {[%clk 0:02:56]} 9. Ne5 {[%clk 0:02:17]}  f6 {[%clk 0:02:57]} 10. Bxe4 {[%clk 0:02:15]}  dxe4 {[%clk 0:02:54]} 11. Nc4 {[%clk 0:02:12]}  Qxf4 {[%clk 0:02:54]} 12. Ne3 {[%clk 0:02:11]}  O-O {[%clk 0:02:52]} 13. Nxf5 {[%clk 0:02:11]}  exf5 {[%clk 0:02:49]} 14. Qe2 {[%clk 0:02:07]}  Nd7 {[%clk 0:02:46]} 15. Qe3 {[%clk 0:02:07]}  Qxe3 {[%clk 0:02:46]} 16. fxe3 {[%clk 0:02:08]}  g6 {[%clk 0:02:46]} 17. Nd2 {[%clk 0:02:03]}  c5 {[%clk 0:02:46]} 18. Rf2 {[%clk 0:01:58]}  cxd4 {[%clk 0:02:46]} 19. cxd4 {[%clk 0:01:57]}  Rac8 {[%clk 0:02:46]} 20. Nb3 {[%clk 0:01:56]}  Nb6 {[%clk 0:02:44]} 21. Rc1 {[%clk 0:01:55]}  Rxc1+ {[%clk 0:02:43]} 22. Nxc1 {[%clk 0:01:56]}  Nd5 {[%clk 0:02:42]} 23. Nb3 {[%clk 0:01:57]}  Nxe3 {[%clk 0:02:42]} 24. Rd2 {[%clk 0:01:55]}  b6 {[%clk 0:02:38]} 25. g3 {[%clk 0:01:53]}  Rd8 {[%clk 0:02:35]} 26. Kf2 {[%clk 0:01:52]}  Ng4+ {[%clk 0:02:34]} 27. Ke2 {[%clk 0:01:40]}  g5 {[%clk 0:02:32]} 28. d5 {[%clk 0:01:39]}  f4 {[%clk 0:02:33]} 29. gxf4 {[%clk 0:01:38]}  gxf4 {[%clk 0:02:33]} 30. h3 {[%clk 0:01:34]}  f3+ {[%clk 0:02:32]} 31. Kf1 {[%clk 0:01:32]}  Ne5 {[%clk 0:02:31]} 32. Rd4 {[%clk 0:01:22]}  e3 {[%clk 0:02:29]} 33. d6 {[%clk 0:01:17]}  Kf7 {[%clk 0:02:24]} 34. Nc1 {[%clk 0:01:15]}  Rg8 {[%clk 0:02:22]} 35. Nd3 {[%clk 0:01:08]}  Nxd3 {[%clk 0:02:18]} 36. Rxd3 {[%clk 0:01:09]}  e2+ {[%clk 0:02:15]} 37. Kf2 {[%clk 0:01:09]}  Rg1 {[%clk 0:02:06]} 38. Re3 {[%clk 0:00:59]}  Rf1+ {[%clk 0:02:05]} 39. Kg3 {[%clk 0:00:55]}  e1=Q+ {[%clk 0:02:05]} 40. Rxe1 {[%clk 0:00:55]}  Rxe1 {[%clk 0:02:05]} 41. Kxf3 {[%clk 0:00:56]}  Rd1 {[%clk 0:02:06]} 42. d7 {[%clk 0:00:50]}  Rxd7 {[%clk 0:02:06]} 0-1


[Site "https://www.chess.com"]

[Event "Titled Tuesday Blitz August 22 Early 2023"]
[White "Palacio,Igor Da Paz"]
[Black "Schut, Han"]
[WhiteFideId "2121140"]
[BlackFideId "1005561"]
[WhiteElo "2261"]
[BlackElo "2242"]
[Result "1/2-1/2"]
[Round "6"]
[TimeControl "180+1"]
[Date "2023.08.22"]
[WhiteClock "0:00:04"]
[BlackClock "0:00:12"]
[Board "213"]

1. e4 {[%clk 0:03:00]}  c5 {[%clk 0:02:59]} 2. Nc3 {[%clk 0:03:00]}  Nc6 {[%clk 0:02:59]} 3. g3 {[%clk 0:03:00]}  g6 {[%clk 0:02:59]} 4. Bg2 {[%clk 0:03:01]}  Bg7 {[%clk 0:03:00]} 5. d3 {[%clk 0:03:01]}  e6 {[%clk 0:02:59]} 6. Be3 {[%clk 0:03:01]}  d6 {[%clk 0:02:58]} 7. f4 {[%clk 0:03:00]}  Nge7 {[%clk 0:02:58]} 8. Nf3 {[%clk 0:03:01]}  Nd4 {[%clk 0:02:53]} 9. O-O {[%clk 0:02:58]}  Nec6 {[%clk 0:02:49]} 10. e5 {[%clk 0:02:53]}  dxe5 {[%clk 0:02:41]} 11. Nxe5 {[%clk 0:02:49]}  Nxe5 {[%clk 0:02:36]} 12. fxe5 {[%clk 0:02:49]}  Bxe5 {[%clk 0:02:34]} 13. Ne4 {[%clk 0:02:48]}  Nf5 {[%clk 0:02:05]} 14. Bxc5 {[%clk 0:02:41]}  Bd4+ {[%clk 0:02:05]} 15. Bxd4 {[%clk 0:02:40]}  Qxd4+ {[%clk 0:02:04]} 16. Rf2 {[%clk 0:02:30]}  O-O {[%clk 0:01:44]} 17. c3 {[%clk 0:02:27]}  Qb6 {[%clk 0:01:40]} 18. d4 {[%clk 0:02:15]}  Ne3 {[%clk 0:01:29]} 19. Qb3 {[%clk 0:02:12]}  Nxg2 {[%clk 0:01:28]} 20. Qxb6 {[%clk 0:02:06]}  axb6 {[%clk 0:01:26]} 21. Nf6+ {[%clk 0:01:58]}  Kg7 {[%clk 0:01:23]} 22. Kxg2 {[%clk 0:01:58]}  Rd8 {[%clk 0:01:22]} 23. a3 {[%clk 0:01:26]}  Bd7 {[%clk 0:01:21]} 24. Nxd7 {[%clk 0:01:25]}  Rxd7 {[%clk 0:01:22]} 25. Re1 {[%clk 0:01:23]}  Ra5 {[%clk 0:01:12]} 26. Rfe2 {[%clk 0:01:20]}  Rad5 {[%clk 0:01:07]} 27. Re5 {[%clk 0:01:18]}  R5d6 {[%clk 0:00:55]} 28. R1e3 {[%clk 0:01:09]}  Kf8 {[%clk 0:00:55]} 29. h4 {[%clk 0:01:03]}  Ke7 {[%clk 0:00:54]} 30. Rb5 {[%clk 0:00:49]}  f6 {[%clk 0:00:48]} 31. Kf3 {[%clk 0:00:45]}  Kf7 {[%clk 0:00:48]} 32. Ke2 {[%clk 0:00:40]}  Rc7 {[%clk 0:00:47]} 33. Rd3 {[%clk 0:00:34]}  Ke7 {[%clk 0:00:42]} 34. Kf3 {[%clk 0:00:29]}  Kd7 {[%clk 0:00:42]} 35. Rb4 {[%clk 0:00:25]}  Rcc6 {[%clk 0:00:39]} 36. Ke3 {[%clk 0:00:23]}  Rd5 {[%clk 0:00:37]} 37. Ra4 {[%clk 0:00:20]}  Rf5 {[%clk 0:00:35]} 38. Ke2 {[%clk 0:00:18]}  Kd6 {[%clk 0:00:31]} 39. Ra8 {[%clk 0:00:18]}  Rc7 {[%clk 0:00:30]} 40. Rd8+ {[%clk 0:00:17]}  Ke7 {[%clk 0:00:27]} 41. Rh8 {[%clk 0:00:17]}  Kd6 {[%clk 0:00:27]} 42. Rd8+ {[%clk 0:00:16]}  Ke7 {[%clk 0:00:27]} 43. Rg8 {[%clk 0:00:13]}  Kd6 {[%clk 0:00:28]} 44. Rf3 {[%clk 0:00:11]}  Rxf3 {[%clk 0:00:23]} 45. Kxf3 {[%clk 0:00:12]}  e5 {[%clk 0:00:23]} 46. dxe5+ {[%clk 0:00:11]}  Kxe5 {[%clk 0:00:24]} 47. Ke3 {[%clk 0:00:11]}  Kf5 {[%clk 0:00:24]} 48. Rd8 {[%clk 0:00:03]}  Re7+ {[%clk 0:00:22]} 49. Kf3 {[%clk 0:00:02]}  Ke5 {[%clk 0:00:18]} 50. Rd4 {[%clk 0:00:01]}  f5 {[%clk 0:00:17]} 51. Rd3 {[%clk 0:00:01]}  Kf6 {[%clk 0:00:15]} 52. Rd4 {[%clk 0:00:01]}  Re1 {[%clk 0:00:14]} 53. Rd6+ {[%clk 0:00:01]}  Ke5 {[%clk 0:00:13]} 54. Rxb6 {[%clk 0:00:01]}  Rd1 {[%clk 0:00:12]} 55. Kf2 {[%clk 0:00:02]}  Rd2+ {[%clk 0:00:10]} 56. Kf3 {[%clk 0:00:02]}  Rd3+ {[%clk 0:00:11]} 57. Ke2 {[%clk 0:00:02]}  Rxg3 {[%clk 0:00:11]} 58. Rxb7 {[%clk 0:00:02]}  Kf4 {[%clk 0:00:10]} 59. Rxh7 {[%clk 0:00:02]}  Rg2+ {[%clk 0:00:11]} 60. Kd3 {[%clk 0:00:02]}  Rxb2 {[%clk 0:00:12]} 61. Rg7 {[%clk 0:00:01]}  Rg2 {[%clk 0:00:09]} 62. h5 {[%clk 0:00:01]}  Rg3+ {[%clk 0:00:08]} 63. Kd2 {[%clk 0:00:01]}  gxh5 {[%clk 0:00:09]} 64. Rxg3 {[%clk 0:00:01]}  Kxg3 {[%clk 0:00:09]} 65. a4 {[%clk 0:00:01]}  f4 {[%clk 0:00:10]} 66. a5 {[%clk 0:00:02]}  f3 {[%clk 0:00:10]} 67. a6 {[%clk 0:00:02]}  f2 {[%clk 0:00:10]} 68. a7 {[%clk 0:00:02]}  f1=Q {[%clk 0:00:11]} 69. a8=Q {[%clk 0:00:03]}  Qg2+ {[%clk 0:00:09]} 70. Qxg2+ {[%clk 0:00:02]}  Kxg2 {[%clk 0:00:10]} 71. c4 {[%clk 0:00:03]}  h4 {[%clk 0:00:11]} 72. c5 {[%clk 0:00:03]}  h3 {[%clk 0:00:12]} 73. c6 {[%clk 0:00:04]}  h2 {[%clk 0:00:13]} 74. c7 {[%clk 0:00:05]}  h1=Q {[%clk 0:00:13]} 75. c8=Q {[%clk 0:00:05]}  Qh3 {[%clk 0:00:12]} 76. Qc6+ {[%clk 0:00:04]}  Qf3 {[%clk 0:00:12]} 77. Qxf3+ {[%clk 0:00:04]}  Kxf3 {[%clk 0:00:12]} 1/2-1/2


[Site "https://www.chess.com"]